bitfinex/quotes_SOLUSD_20240922
["timestamp","ask_amount","ask_price","bid_price","bid_amount"]
[1726987286191,0.2481007,146.96,146.95,30.081884]
[1726987288592,0.2481007,146.96,146.95,31.44244773]
[1726987290211,0.2481007,146.96,146.95,30.207374]
[1726987290789,0.2481007,146.96,146.95,31.56788584]
[1726987290988,0.2481007,146.96,146.95,30.207374]
[1726987291717,0.2481007,146.96,146.95,31.56788665]
[1726987291894,0.2481007,146.96,146.95,43.28502818]
[1726987292219,0.2481007,146.96,146.95,44.64543765]
[1726987292424,0.2481007,146.96,146.95,30.332864]
[1726987293227,0.2481007,146.96,146.95,30.207374]
[1726987296331,0.2481007,146.96,146.92,26.8063]
[1726987296831,0.2481007,146.96,146.93,6.8058]
[1726987297218,0.2481007,146.96,146.94,6.8054]
[1726987306121,0.2481007,146.96,146.93,23.776884]
[1726987306325,6.805,146.95,146.91,17.0166]
[1726987307931,0.2481007,146.96,146.89,6.8077]
[1726987307932,6.8056,146.94,146.89,6.8077]
[1726987308130,0.2481007,146.96,146.88,23.8277]
[1726987308336,6.8061,146.93,146.88,23.8277]
[1726987309549,6.8061,146.93,146.89,23.776884]
[1726987311247,6.8061,146.93,146.89,30.584584]
[1726987316642,6.8061,146.93,146.89,23.776884]
[1726987317765,6.8061,146.93,146.89,30.584584]
[1726987320948,18.96158911,146.96,146.88,17.0199]
[1726987321152,6.8069,146.91,146.88,23.776884]
[1726987321946,6.8065,146.92,146.88,23.776884]
[1726987322264,6.8065,146.92,146.88,30.585084]
[1726987322435,6.8065,146.92,146.88,6.8082]
[1726987322631,6.8065,146.92,146.89,1.36131629]
[1726987324356,6.806,146.93,146.89,6.8077]
[1726987330465,6.8064,146.92,146.88,6.8082]
[1726987330769,6.8064,146.92,146.87,47.606884]
[1726987331754,16.566,146.93,146.85,20.0]
[1726987331946,6.8079,146.89,146.84,23.8347]
[1726987332342,6.8079,146.89,146.85,6.8095]
[1726987337165,6.8071,146.91,146.87,6.8086]
[1726987337359,6.8071,146.91,146.86,6.8091]
[1726987337562,6.8071,146.91,146.87,23.776884]
[1726987338775,6.8073,146.9,146.86,6.8091]
[1726987340063,6.8073,146.9,146.85,30.586384]
[1726987340252,6.8079,146.89,146.85,23.776884]
[1726987341868,6.8079,146.89,146.85,30.586384]
[1726987348081,6.8079,146.89,146.84,23.8349]
[1726987348290,17.25036261,146.88,146.81,17.3446228]
[1726987348592,6.8093,146.86,146.81,24.1560228]
[1726987350581,6.8093,146.86,146.82,6.8109]
[1726987353286,6.8093,146.86,146.81,24.1560228]
[1726987354156,8.51243106,146.85,146.81,17.3446228]
[1726987354363,6.81,146.85,146.81,17.3446228]
[1726987356191,6.81,146.85,146.81,24.1560228]
[1726987356690,6.8102,146.84,146.81,0.3165228]
[1726987357898,6.8097,146.85,146.81,0.3165228]
[1726987362992,6.8097,146.85,146.81,1.67859975]
[1726987363492,6.8102,146.84,146.81,1.67859975]
[1726987363866,6.8102,146.84,146.81,0.3165228]
[1726987365478,1.70259895,146.87,146.81,0.3165228]
[1726987365479,6.811,146.82,146.81,0.3165228]
[1726987383397,39.1213,146.88,146.81,0.3165228]
[1726987383603,6.8097,146.85,146.81,1.67862731]
[1726987383917,6.8097,146.85,146.81,24.0934068]
[1726987385002,51.0542,146.91,146.81,24.0934068]
[1726987385205,20.0,146.9,146.81,24.0934068]
[1726987385597,6.8092,146.86,146.81,30.9048068]
[1726987388320,6.8092,146.86,146.82,6.8109]
[1726987388690,6.8092,146.86,146.83,1.36181679]
[1726987388904,6.8088,146.87,146.83,1.36181679]
[1726987389313,20.0,146.9,146.83,1.36181679]
[1726987389314,6.8083,146.88,146.84,25.13868906]
[1726987389490,6.8083,146.88,146.84,23.776884]
[1726987389690,21.5728,146.92,146.83,6.8104]
[1726987389691,21.5728,146.92,146.83,40.802684]
[1726987389895,15.0422,146.92,146.84,8.17167069]
[1726987390695,6.8081,146.89,146.84,6.81]
[1726987390896,6.8083,146.88,146.84,6.81]
[1726987391493,6.8083,146.88,146.83,47.612884]
[1726987394221,6.8088,146.87,146.83,40.802684]
[1726987395526,6.8083,146.88,146.83,47.613084]
[1726987396524,6.8087,146.87,146.83,47.613084]
[1726987400620,6.8094,146.86,146.81,0.3165228]
[1726987400925,6.8094,146.86,146.81,24.0934068]
[1726987401316,6.8094,146.86,146.81,30.9048068]
[1726987401835,6.8106,146.83,146.81,0.3165228]
[1726987403011,6.8102,146.84,146.81,0.3165228]
[1726987403835,6.8107,146.83,146.81,0.3165228]
[1726987404516,6.8101,146.84,146.81,0.3165228]
[1726987405121,6.8107,146.83,146.81,0.3165228]
[1726987409937,6.811,146.82,146.81,0.3165228]
[1726987421144,6.8106,146.83,146.81,0.3165228]
[1726987421326,33.6015,146.89,146.82,1.36212038]
[1726987421642,6.8088,146.87,146.83,6.8104]
[1726987421946,6.8083,146.88,146.84,1.36174681]
[1726987422118,6.8083,146.88,146.84,23.776884]
[1726987422736,6.8083,146.88,146.85,1.3616768]
[1726987423118,6.8083,146.88,146.84,23.776884]
[1726987427340,6.8087,146.87,146.84,23.776884]
[1726987433653,20.0,146.91,146.85,1.3617042]
[1726987433952,6.8084,146.88,146.84,6.81]
[1726987435762,20.0,146.91,146.85,23.776884]
[1726987435763,6.8079,146.89,146.85,23.776884]
[1726987435964,6.8079,146.89,146.86,1.36156669]
[1726987438742,6.8079,146.89,146.85,30.586284]
[1726987439355,6.8079,146.89,146.86,0.86990622]
[1726987439565,6.8074,146.9,146.86,8.17075804]
[1726987441547,6.8074,146.9,146.87,23.776884]
[1726987441751,6.807,146.91,146.88,1.36141122]
[1726987443657,6.807,146.91,146.87,39.919284]
[1726987444766,6.8065,146.92,146.87,39.919284]
[1726987444966,6.8065,146.92,146.87,46.367484]
[1726987445672,6.8065,146.92,146.87,53.176084]
[1726987446272,6.807,146.91,146.87,46.367484]
[1726987451071,6.8074,146.9,146.87,46.367484]
[1726987455163,6.8081,146.89,146.87,22.5906]
[1726987455365,6.8081,146.89,146.85,17.0236]
[1726987455566,6.8081,146.89,146.86,23.776884]
[1726987455760,6.8081,146.89,146.84,22.6707]
[1726987455761,6.8084,146.88,146.84,22.6707]
[1726987455973,6.8084,146.88,146.85,23.776884]
[1726987456885,0.12549,146.91,146.84,15.8608]
[1726987457176,6.81,146.85,146.81,0.3165228]
[1726987458963,6.81,146.85,146.81,24.0934068]
[1726987459868,0.12549,146.87,146.81,0.3165228]
[1726987460070,17.0199,146.89,146.81,0.3165228]
[1726987460071,6.8107,146.83,146.81,0.3165228]
[1726987460270,0.12549,146.87,146.81,0.3165228]
[1726987460461,1.70269351,146.86,146.81,0.3165228]
[1726987461263,6.811,146.82,146.81,0.3165228]
[1726987464760,8.51409173,146.82,146.81,0.3165228]
[1726987470485,6.811,146.82,146.81,0.3165228]
[1726987474672,8.51409611,146.82,146.81,0.3165228]
[1726987476369,6.811,146.82,146.81,0.3165228]
[1726987481376,6.811,146.82,146.79,1.17885169]
[1726987481576,6.8105,146.84,146.78,5.0]
[1726987481776,16.5966,146.86,146.78,5.0]
[1726987481974,6.8107,146.83,146.78,11.8128]
[1726987482176,6.8111,146.82,146.78,11.8128]
[1726987483098,6.8111,146.82,146.78,5.0]
[1726987489699,16.5966,146.86,146.78,5.0]
[1726987490002,6.8102,146.84,146.79,30.588984]
[1726987495008,6.8102,146.84,146.8,6.8119]
[1726987495505,6.8102,146.84,146.79,30.589184]
[1726987496400,6.8107,146.83,146.79,30.589184]
[1726987499504,18.29912528,146.86,146.79,23.776884]
[1726987499505,6.8112,146.82,146.79,23.776884]
[1726987500609,6.8112,146.82,146.78,11.8129]
[1726987501587,1.70271307,146.85,146.78,5.0]
[1726987501588,6.8116,146.81,146.78,5.0]
[1726987504098,6.8111,146.82,146.78,11.8128]
[1726987504313,6.8111,146.82,146.78,5.0]
[1726987504507,6.8111,146.82,146.79,1.362285]
[1726987508116,6.8111,146.82,146.78,11.8128]
[1726987508409,6.8115,146.81,146.78,5.0]
[1726987510089,6.8111,146.82,146.78,5.0]
[1726987510410,33.62,146.86,146.79,30.588984]
[1726987510612,6.8102,146.84,146.8,8.17390428]
[1726987510916,6.8099,146.85,146.81,23.776884]
[1726987511510,6.8099,146.85,146.8,30.588684]
[1726987512006,6.8101,146.84,146.8,30.588684]
[1726987512407,6.8101,146.84,146.8,23.776884]
[1726987514020,6.8106,146.83,146.8,23.776884]
[1726987519424,6.8102,146.84,146.8,30.588784]
[1726987519724,6.8088,146.87,146.83,6.8105]
[1726987519935,22.85323244,146.9,146.85,23.776884]
[1726987520108,6.8074,146.9,146.86,1.36156378]
[1726987521817,6.8069,146.91,146.87,1.36154323]
[1726987522324,6.8069,146.91,146.87,23.776884]
[1726987524215,6.8069,146.91,146.88,1.36139711]
[1726987524529,6.8069,146.91,146.87,23.776884]
[1726987526410,0.2481007,146.92,146.85,17.0234]
[1726987526610,6.8081,146.89,146.85,17.0234]
[1726987526928,6.8074,146.9,146.85,23.833]
[1726987527934,6.8074,146.9,146.86,23.776884]
[1726987530436,6.8074,146.9,146.86,30.585984]
[1726987531513,6.8074,146.9,146.86,46.026184]
[1726987531720,6.8069,146.91,146.86,46.026184]
[1726987531921,6.8069,146.91,146.87,1.36140703]
[1726987533043,7.0546007,146.92,146.89,23.776884]
[1726987533233,7.0546007,146.92,146.9,1.36124848]
[1726987534049,0.2481007,146.92,146.9,1.36124848]
[1726987535030,0.2481007,146.92,146.91,23.776884]
[1726987537751,0.2481007,146.92,146.9,23.776884]
[1726987543959,7.0545007,146.92,146.88,6.8081]
[1726987544252,7.0545007,146.92,146.89,23.776884]
[1726987545255,0.2481007,146.92,146.89,23.776884]
[1726987545753,0.2481007,146.92,146.9,1.36118003]
[1726987546655,0.2481007,146.92,146.89,23.776884]
[1726987546656,0.2481007,146.92,146.91,1.36118278]
[1726987547153,0.2481007,146.92,146.91,23.776884]
[1726987547768,0.2481007,146.92,146.9,23.776884]
[1726987551439,0.2481007,146.92,146.88,23.8282]
[1726987552958,0.2481007,146.92,146.89,23.776884]
[1726987555062,7.0545007,146.92,146.89,23.776884]
[1726987555367,0.2481007,146.92,146.88,23.776884]
[1726987556364,6.807,146.91,146.88,23.776884]
[1726987558644,7.0546007,146.92,146.88,23.776884]
[1726987561871,0.2481007,146.92,146.88,36.72904818]
[1726987562060,0.2481007,146.92,146.89,1.36129699]
[1726987563366,0.2481007,146.92,146.89,8.16889699]
[1726987565758,0.2481007,146.92,146.9,23.776884]
[1726987565964,0.2481007,146.92,146.91,1.36110259]
[1726987568863,0.2481007,146.92,146.9,1.36114182]
[1726987573273,0.2481007,146.92,146.91,23.776884]
[1726987576373,0.2481007,146.92,146.91,23.902374]
[1726987577173,0.2481007,146.92,146.91,6.93229]
[1726987577579,0.2481007,146.92,146.91,30.709174]
[1726987577874,0.2481007,146.92,146.91,23.776884]
[1726987578175,0.2481007,146.92,146.9,23.776884]
[1726987579061,0.2481007,146.92,146.91,25.13799626]
[1726987579247,0.2481007,146.92,146.91,23.776884]
[1726987579966,0.2481007,146.92,146.91,25.13793128]
[1726987580475,0.2481007,146.92,146.91,30.583684]
[1726987581684,0.2481007,146.92,146.91,0.12549]
[1726987581860,0.2481007,146.92,146.9,23.776884]
[1726987584376,7.0546007,146.92,146.88,0.12549]
[1726987584678,6.8068,146.91,146.87,6.8086]
[1726987586581,6.8068,146.91,146.88,23.776884]
[1726987588193,6.8068,146.91,146.87,23.776884]
[1726987588561,6.8068,146.91,146.87,30.585384]
[1726987589581,7.0546007,146.92,146.87,30.585384]
[1726987610682,6.8069,146.91,146.87,30.585384]
[1726987613506,6.8069,146.91,146.87,23.776884]
[1726987615709,6.8069,146.91,146.87,30.585484]
[1726987617512,6.8069,146.91,146.87,6.8086]
[1726987617718,0.2481007,146.92,146.88,30.584884]
[1726987617899,0.2481007,146.92,146.89,0.12549]
[1726987618216,0.2481007,146.92,146.9,1.36112863]
[1726987622027,0.2481007,146.92,146.9,23.776884]
[1726987623222,0.2481007,146.92,146.89,23.902374]
[1726987624223,0.2481007,146.92,146.89,30.710174]
[1726987625001,0.2481007,146.92,146.9,1.36116942]
[1726987626127,0.2481007,146.92,146.89,30.710174]
[1726987626819,0.2481007,146.92,146.89,23.776884]
[1726987627229,7.0545007,146.92,146.89,23.776884]
[1726987629431,6.8069,146.91,146.87,6.8086]
[1726987629639,6.8084,146.88,146.83,15.8645]
[1726987629925,6.8079,146.89,146.84,6.81]
[1726987630619,6.8074,146.9,146.86,6.8089]
[1726987630813,6.8074,146.9,146.87,23.776884]
[1726987633024,6.8074,146.9,146.85,0.12549]
[1726987633025,6.8078,146.89,146.85,6.8096]
[1726987633408,6.8078,146.89,146.86,23.776884]
[1726987634625,6.8078,146.89,146.85,23.776884]
[1726987639332,17.46146694,146.91,146.85,23.776884]
[1726987639333,6.8074,146.9,146.85,30.586384]
[1726987639521,6.8074,146.9,146.86,0.12549]
[1726987639829,6.8069,146.91,146.87,23.776884]
[1726987640028,6.8069,146.91,146.88,1.36145119]
[1726987640328,6.8069,146.91,146.87,23.776884]
[1726987643443,1.94992541,146.92,146.85,6.8095]
[1726987643628,1.7020266,146.91,146.86,23.776884]
[1726987643939,0.2481007,146.92,146.86,23.776884]
[1726987644316,6.8079,146.89,146.86,23.776884]
[1726987644636,6.8074,146.9,146.86,23.776884]
[1726987648716,6.807,146.91,146.87,6.8087]
[1726987648918,6.807,146.91,146.86,6.8091]
[1726987649120,6.807,146.91,146.87,23.776884]
[1726987654444,0.2481007,146.92,146.87,23.776884]
[1726987654648,6.8073,146.9,146.85,6.8096]
[1726987654947,6.8073,146.9,146.86,23.776884]
[1726987655438,6.8079,146.89,146.86,23.776884]
[1726987655936,6.8082,146.88,146.84,23.8346]
[1726987656143,6.8082,146.88,146.85,23.776884]
[1726987657035,6.8087,146.87,146.83,6.93589]
[1726987657333,6.8087,146.87,146.84,23.776884]
[1726987657933,6.8084,146.88,146.84,23.776884]
[1726987658142,6.8084,146.88,146.84,30.586984]
[1726987660548,6.8084,146.88,146.84,23.776884]
[1726987660933,34.3118113,146.89,146.79,6.8082]
[1726987661130,25.73056929,146.88,146.78,5.0]
[1726987661453,20.0,146.84,146.78,5.0]
[1726987662052,6.8119,146.81,146.78,5.0]
[1726987664744,1.70299083,146.83,146.78,5.0]
[1726987665151,6.8124,146.79,146.78,5.0]
[1726987675646,6.8122,146.8,146.78,5.0]
[1726987676334,6.8124,146.79,146.78,5.0]
[1726987676549,6.812,146.8,146.78,5.0]
[1726987676734,6.8124,146.79,146.78,5.0]
[1726987699349,6.8124,146.79,146.75,0.3493267]
[1726987699350,6.8138,146.76,146.75,0.3493267]
[1726987705484,28.51780871,146.76,146.75,0.3493267]
[1726987705655,26.8138,146.76,146.75,0.3493267]
[1726987706283,26.8138,146.76,146.72,0.3165228]
[1726987706284,6.8152,146.73,146.72,0.3165228]
[1726987706956,8.64511778,146.73,146.72,0.3165228]
[1726987707283,8.77060778,146.73,146.72,0.3165228]
[1726987707459,6.817,146.69,146.68,0.2481007]
[1726987709178,6.8166,146.7,146.68,0.2481007]
[1726987709379,20.0,146.75,146.68,0.2481007]
[1726987709563,6.8158,146.72,146.68,0.2481007]
[1726987710871,20.0,146.76,146.68,1.61140991]
[1726987711466,6.8157,146.72,146.68,0.2481007]
[1726987711968,6.8157,146.72,146.68,7.0656007]
[1726987713388,6.8157,146.72,146.68,0.2481007]
[1726987714579,6.817,146.69,146.68,0.2481007]
[1726987715269,6.8167,146.7,146.68,0.2481007]
[1726987715464,6.817,146.69,146.68,0.2481007]
[1726987715673,6.817,146.69,146.65,17.3963267]
[1726987716062,6.8176,146.68,146.65,10.5775267]
[1726987716574,6.8171,146.69,146.65,10.5775267]
[1726987718295,20.0,146.73,146.66,1.36366649]
[1726987718457,6.8165,146.71,146.67,1.36341551]
[1726987718964,6.8157,146.72,146.67,1.36341551]
[1726987719383,6.8152,146.73,146.68,30.845264]
[1726987720274,6.8152,146.73,146.68,47.888364]
[1726987720466,6.8158,146.72,146.68,17.0431]
[1726987721589,6.8152,146.73,146.69,1.36334221]
[1726987722192,6.8152,146.73,146.68,23.8604]
[1726987722193,6.8158,146.72,146.68,17.0431]
[1726987722689,6.8158,146.72,146.68,23.8605]
[1726987722986,6.8153,146.73,146.68,23.8605]
[1726987724490,6.8157,146.72,146.68,23.8605]
[1726987724702,6.8157,146.72,146.68,17.0431]
[1726987725671,6.8162,146.71,146.67,6.818]
[1726987726076,6.8162,146.71,146.66,30.720774]
[1726987728399,6.8167,146.7,146.66,23.776884]
[1726987729597,1.70437021,146.69,146.65,27.6245267]
[1726987729908,6.8175,146.68,146.65,10.5775267]
[1726987730573,6.8171,146.69,146.65,10.5775267]
[1726987730890,6.8171,146.69,146.65,17.3964267]
[1726987731488,6.8167,146.7,146.65,17.3964267]
[1726987731995,6.8171,146.69,146.65,17.3964267]
[1726987733400,6.8171,146.69,146.65,10.5775267]
[1726987735601,6.8175,146.68,146.65,10.5775267]
[1726987737096,6.8175,146.68,146.64,13.1584]
[1726987737395,6.8182,146.67,146.63,0.3165228]
[1726987737603,6.8182,146.67,146.63,7.1363228]
[1726987739305,6.8175,146.68,146.64,1.36374803]
[1726987739497,6.8171,146.69,146.64,8.18304803]
[1726987740794,6.8171,146.69,146.65,6.8188]
[1726987740996,16.1489,146.72,146.66,1.36355232]
[1726987740997,6.8167,146.7,146.66,1.36355232]
[1726987741211,6.8167,146.7,146.65,6.8188]
[1726987741379,6.8161,146.71,146.66,31.95881816]
[1726987742015,6.8167,146.7,146.66,23.776884]
[1726987742507,6.8171,146.69,146.65,6.0524]
[1726987742882,6.8171,146.69,146.64,23.8672]
[1726987743097,6.8176,146.68,146.64,17.0479]
[1726987745109,6.8176,146.68,146.64,23.8672]
[1726987746418,6.8185,146.66,146.63,0.3165228]
[1726987747090,6.8181,146.67,146.63,0.3165228]
[1726987747288,6.8181,146.67,146.63,7.1362228]
[1726987748508,6.8181,146.67,146.63,0.3165228]
[1726987749101,17.0421,146.7,146.63,0.3165228]
[1726987749102,6.8186,146.66,146.63,0.3165228]
[1726987750304,6.8181,146.67,146.63,0.3165228]
[1726987751013,6.8181,146.67,146.63,8.50010897]
[1726987752300,6.817,146.7,146.64,36.72904818]
[1726987752505,6.817,146.7,146.66,23.776884]
[1726987752693,6.817,146.7,146.67,1.36341108]
[1726987752890,6.817,146.7,146.66,21.5849]
[1726987753105,6.816,146.72,146.67,30.594884]
[1726987753297,6.8153,146.73,146.68,8.18068888]
[1726987753711,6.8158,146.72,146.67,47.639084]
[1726987756914,6.8153,146.73,146.68,6.8174]
[1726987757113,16.5327007,146.78,146.69,25.14004966]
[1726987757413,6.8144,146.75,146.7,6.8165]
[1726987757728,6.8144,146.75,146.71,1.36309403]
[1726987757914,0.2481007,146.78,146.72,23.776884]
[1726987758229,0.2481007,146.78,146.72,30.592384]
[1726987758404,6.8138,146.76,146.72,23.776884]
[1726987759240,6.8143,146.75,146.71,15.1145]
[1726987759527,6.8147,146.74,146.71,15.1145]
[1726987760312,6.8144,146.75,146.71,16.47749555]
[1726987760524,6.8138,146.76,146.72,23.776884]
[1726987760721,7.0610007,146.78,146.73,6.8151]
[1726987760931,7.0610007,146.78,146.74,1.36279627]
[1726987761314,6.8134,146.77,146.72,30.592484]
[1726987761722,0.2481007,146.78,146.72,30.592484]
[1726987761723,6.8139,146.76,146.72,23.776884]
[1726987762433,6.8134,146.77,146.72,30.592184]
[1726987763435,6.8139,146.76,146.72,23.776884]
[1726987764019,6.8133,146.77,146.73,1.36282023]
[1726987764949,6.8134,146.77,146.74,23.776884]
[1726987767534,6.8134,146.77,146.73,23.776884]
[1726987768139,7.0610007,146.78,146.74,1.3627167]
[1726987768519,7.0610007,146.78,146.75,23.776884]
[1726987769039,7.0610007,146.78,146.74,23.776884]
[1726987771839,0.2481007,146.78,146.71,38.5259]
[1726987772040,9.47303229,146.78,146.71,38.5259]
[1726987772246,6.8141,146.76,146.71,45.3419]
[1726987772812,6.8143,146.75,146.71,45.3419]
[1726987773224,6.8143,146.75,146.72,23.776884]
[1726987774042,6.8139,146.76,146.72,23.776884]
[1726987774347,0.2481007,146.78,146.72,30.592484]
[1726987774726,6.8139,146.76,146.72,30.592484]
[1726987781253,6.8139,146.76,146.72,23.776884]
[1726987781733,6.8139,146.76,146.72,30.592484]
[1726987782249,6.8134,146.77,146.73,6.94059]
[1726987782429,6.8134,146.77,146.74,23.776884]
[1726987785458,6.8134,146.77,146.73,23.902374]
[1726987786826,6.8134,146.77,146.73,23.776884]
[1726987787235,6.8139,146.76,146.73,23.776884]
[1726987787432,6.8139,146.76,146.72,23.776884]
[1726987787758,6.8139,146.76,146.71,45.342]
[1726987787759,6.8144,146.75,146.71,38.5259]
[1726987788561,6.8144,146.75,146.71,45.3419]
[1726987788746,6.8144,146.75,146.72,23.776884]
[1726987790154,6.8148,146.74,146.71,21.4863]
[1726987790357,6.8148,146.74,146.69,30.844764]
[1726987790557,6.8153,146.73,146.68,39.1135]
[1726987792060,6.8153,146.73,146.69,23.776884]
[1726987792749,6.8157,146.72,146.68,39.1135]
[1726987793060,17.0355,146.76,146.68,15.2528]
[1726987793251,1.70402305,146.75,146.68,15.2528]
[1726987793646,6.8157,146.72,146.68,15.2528]
[1726987793964,6.8157,146.72,146.68,22.0703]
[1726987800362,6.8153,146.73,146.68,22.0703]
[1726987802871,6.8157,146.72,146.68,22.0703]
[1726987803069,6.8162,146.71,146.68,15.2528]
[1726987804889,6.8158,146.72,146.68,15.2528]
[1726987805782,6.8162,146.71,146.68,15.2528]
[1726987805963,6.8168,146.7,146.67,23.776884]
[1726987807568,6.8171,146.69,146.65,6.8188]
[1726987812088,6.8189,146.65,146.63,0.3165228]
[1726987812290,6.8181,146.67,146.63,0.3165228]
[1726987813287,6.8185,146.66,146.63,0.3165228]
[1726987815189,1.70490048,146.69,146.63,0.3165228]
[1726987815369,20.0,146.67,146.63,0.3165228]
[1726987815575,6.8186,146.66,146.63,0.3165228]
[1726987816190,6.8194,146.64,146.63,0.3165228]
[1726987816381,6.819,146.65,146.63,0.3165228]
[1726987817673,6.8188,146.66,146.63,0.3165228]
[1726987817870,16.4411,146.71,146.63,0.3165228]
[1726987818067,20.0,146.7,146.63,0.3165228]
[1726987818273,16.4411,146.71,146.63,0.3165228]
[1726987818480,15.56303159,146.74,146.64,24.027864]
[1726987818678,15.56303159,146.74,146.65,6.8186]
[1726987818679,6.817,146.7,146.65,6.8186]
[1726987821293,0.12549,146.69,146.64,0.12549]
[1726987821518,0.12549,146.69,146.63,0.3165228]
[1726987821519,6.8179,146.68,146.63,7.1361228]
[1726987822808,6.8181,146.67,146.63,7.1361228]
[1726987823395,6.8188,146.66,146.63,0.3165228]
[1726987823700,6.8189,146.65,146.63,0.3165228]
[1726987826198,6.8185,146.66,146.63,0.3165228]
[1726987829582,6.8194,146.64,146.63,0.3165228]
[1726987830103,17.0443,146.68,146.63,0.3165228]
[1726987830104,6.819,146.65,146.63,0.3165228]
[1726987830301,6.8194,146.64,146.63,0.3165228]
[1726987831301,6.819,146.65,146.63,0.3165228]
[1726987837593,15.7839,146.7,146.63,0.3165228]
[1726987837594,6.8185,146.66,146.63,0.3165228]
[1726987839128,1.70490901,146.65,146.63,0.3165228]
[1726987840001,6.8185,146.66,146.63,0.3165228]
[1726987841120,6.029,146.72,146.63,0.3165228]
[1726987841121,6.8152,146.73,146.68,6.8174]
[1726987841419,6.8156,146.73,146.68,6.8174]
[1726987841619,1.70417265,146.72,146.66,23.8638]
[1726987841920,6.8166,146.7,146.66,17.0454]
[1726987842622,15.6584,146.74,146.66,23.8637]
[1726987842623,6.8161,146.72,146.66,23.8637]
[1726987843517,8.52081601,146.71,146.66,23.8637]
[1726987843814,6.8164,146.71,146.66,23.8637]
[1726987845224,1.70440685,146.7,146.66,23.8637]
[1726987845612,6.8164,146.71,146.66,23.8637]
[1726987851112,6.8164,146.71,146.67,6.818]
[1726987851505,44.027864,146.73,146.63,38.8480228]
[1726987851711,6.8172,146.69,146.64,6.8193]
[1726987851920,6.8176,146.68,146.64,6.8193]
[1726987853028,32.696,146.74,146.66,12.98935925]
[1726987853411,6.8162,146.71,146.66,19.80765925]
[1726987853625,6.8162,146.71,146.66,6.8183]
[1726987854216,1.70436617,146.7,146.66,6.8183]
[1726987854525,6.8162,146.71,146.66,6.8183]
[1726987855521,1.7043606,146.7,146.66,6.8183]
[1726987855934,6.8162,146.71,146.66,6.8183]
[1726987856131,1.7043659,146.7,146.66,6.8183]
[1726987856734,6.8162,146.71,146.66,6.8183]
[1726987859226,32.696,146.74,146.65,17.0468]
[1726987859428,6.818,146.68,146.63,28.6185228]
[1726987859647,6.818,146.68,146.64,26.8193]
[1726987860310,6.8171,146.69,146.64,26.8193]
[1726987860517,1.70458992,146.68,146.64,26.8193]
[1726987860922,6.8167,146.7,146.65,6.8189]
[1726987861328,6.78657,146.7,146.65,6.8189]
[1726987861930,6.78657,146.7,146.66,6.8184]
[1726987862237,6.8162,146.71,146.66,6.8184]
[1726987863830,6.8158,146.72,146.66,17.0456]
[1726987864045,6.8152,146.74,146.68,6.5281]
[1726987864244,6.38428071,146.78,146.69,38.12944557]
[1726987864424,0.2481007,146.78,146.69,36.76624325]
[1726987865349,6.8139,146.76,146.7,17.0409]
[1726987865633,6.8134,146.77,146.72,6.8155]
[1726987865836,6.8134,146.77,146.73,6.8151]
[1726987867150,7.0611007,146.78,146.73,6.8151]
[1726987870333,7.0611007,146.78,146.74,6.8147]
[1726987870644,0.2481007,146.78,146.74,6.8147]
[1726987870818,0.2481007,146.78,146.75,6.8142]
[1726987874625,8.76447423,146.78,146.74,20.0]
[1726987874924,8.76447423,146.78,146.73,13.3429]
[1726987874925,6.8135,146.77,146.73,6.5281]
[1726987875342,7.0611007,146.78,146.73,13.3433]
[1726987875558,0.2481007,146.78,146.74,6.8147]
[1726987877451,0.2481007,146.78,146.75,30.591084]
[1726987877849,0.2481007,146.78,146.76,1.3626107]
[1726987878172,0.2481007,146.78,146.77,6.8133]
[1726987879051,0.2481007,146.78,146.77,47.062984]
[1726987879460,0.2481007,146.78,146.77,80.05234325]
[1726987879975,0.2481007,146.78,146.77,86.47474325]
[1726987881257,0.2481007,146.78,146.77,73.485384]
[1726987881755,0.2481007,146.78,146.77,42.8952]